Cogmind - Beta 14 @@@ ROGUE MODE // 2024.09.25 @ 16:18:05 Player: saltine Result: Destroyed by MAIN.C with Omega Cannon Performance ------------- Evolutions (9) 4500 Regions Visited (30) 6000 Robots Destroyed (353) 1765 Value Destroyed (17146) 17146 Prototype IDs (65) 1300 Alien Tech Used (4) 800 Bonus (21732) 21732 TOTAL SCORE: 53243 Bonus ------- High Alert Combat Kills 1486 Follower Combat Kills 1289 Network Hubs Disabled 600 Met Zhirov 300 Met Warlord at Base 500 MAIN.C Attacked Warlord 500 Warlord Defense Kills 188 Built Enhanced Grunts 300 A7 Reached Mainframe 300 Met R17 at Cetus 500 Met R17 at Research 2000 Met Warlord at Research 2000 Destroyed MAIN.C Guards 500 Met MAIN.C 5000 Hacked MAIN.C 300 Destroyed MAIN.C Shell 5000 Met Warlord at Command 2000 Friendly Fire -1031 Cogmind --------- Core Integrity 0/1600 Matter 34/300 Energy 100/100 System Corruption 35% Temperature Warm (113) Movement Core (50) Location -1/Command Parts ------- > --- POWER (3) -------- (None) > --- PROPULSION (7) --- (None) > --- UTILITY (12) ----- Advanced Coolant Injector Advanced Coolant Injector Experimental Coolant Injector > --- WEAPON (3) ------- (None) > --- INVENTORY (5) ---- Plasma Lance Peak State ------------ > --- POWER ------------ Micro Antimatter Reactor Micro Antimatter Reactor Light Quantum Reactor > --- PROPULSION ------- Improved Antigrav System Improved Antigrav System Combat Antigrav System Combat Antigrav System Combat Antigrav System Combat Linear Gravjet Combat Linear Gravjet > --- UTILITY ---------- Advanced Cooling System Large Storage Unit Seismic Detector Improved Melee Analysis Suite Advanced Reaction Control System Advanced Cloaking Device Centrium Medium Armor Plating Centrium Medium Armor Plating Advanced Shield Generator Antimissile System Hacking Suite Advanced Hacking Suite > --- WEAPON ----------- Null Cannon Sigix Broadsword > --- INVENTORY -------- Light Quantum Reactor Improved Linear Gravjet Advanced Transmission Jammer Compact HERF Cannon Vortex Driver Enhanced Nova Cannon Hypercooled Linear Accelerator Smartbomb Launcher Improved Remote Datajack Plasma Lance Enhanced Force Lance [Rating: 200] Favorites ----------- Power Quantum Reactor Engine Reinforced Deuterium Engine Power Core Light Nuclear Core Reactor Quantum Reactor Propulsion Centrium Heavy Treads Treads Centrium Heavy Treads Leg Aluminum Leg Wheel Compact Wheel Hover Unit Combat Antigrav System Utility Centrium Medium Armor Plating Device Transmission Jammer Storage Huge Storage Unit Processor Enhanced Optical Array Hackware Improved Hacking Suite Protection Centrium Medium Armor Plating Weapon Antimatter Cannon Energy Gun Medium Laser Energy Cannon Phase Cannon Ballistic Gun Enhanced Autogun Ballistic Cannon Antimatter Cannon Launcher Precision Grenade Launcher Special Weapon Plasma Cutter Slashing Weapon Ionic Axe Piercing Weapon Plasma Lance Build | -11 -10 -10 -9 -9 -8 -8 -7 -7 -7 -6 -6 -6 -6 -6 -5 -5 -5 -5 -4 -4 -4 -4 -4 -3 -3 -3 -2 -2 -1 -1 ------- Run | Yrd Mat Min Mat Min Mat Sto Fac Was Fac Fac Ext Cet Arc Hub Fac Upp Upp War Pro Fac Upp Upp Zhi Pro Res Tes Res Qua Acc Com Slots Evolved 18 | . . . 2 . 2 . 2 . . 2 . . . . 2 . . . . 2 . . . . 2 . 2 . 2 . Power 2 | . . . . . . . . . . 1 . . . . . . . . . . . . . . 1 . . . . . Propulsion 5 | . . . . . 1 . 1 . . . . . . . . . . . . 2 . . . . . . . . 1 . Utility 10 | . . . 2 . 1 . 1 . . 1 . . . . 2 . . . . . . . . . . . 2 . 1 . Weapon 1 | . . . . . . . . . . . . . . . . . . . . . . . . . 1 . . . . . Parts Attached 582 | . 12 4 11 . 36 27 17 4 22 29 45 14 11 20 17 2 5 13 17 6 14 12 6 23 44 30 21 57 17 46 Power 45 | . . 1 3 . 3 2 . . 3 3 2 3 . 1 . . . 1 . . . . . . 7 4 2 7 2 1 Engine 10 | . . . 3 . 1 2 . . 2 . 1 1 . . . . . . . . . . . . . . . . . . Core 8 | . . 1 . . 2 . . . 1 3 1 . . . . . . . . . . . . . . . . . . . Reactor 27 | . . . . . . . . . . . . 2 . 1 . . . 1 . . . . . . 7 4 2 7 2 1 Propulsion 99 | . 2 . 2 . 7 2 3 . 3 3 25 6 1 4 . . . . 1 1 1 . . 1 5 3 4 11 4 10 Treads 43 | . 2 . 2 . 7 2 3 . . . 14 4 1 4 . . . . 1 1 1 . . 1 . . . . . . Leg . | . . . . . . . . . . . . . . . . . . . . . . . . . . . . . . . Wheel 19 | . . . . . . . . . 3 3 11 2 . . . . . . . . . . . . . . . . . . Hover 37 | . . . . . . . . . . . . . . . . . . . . . . . . . 5 3 4 11 4 10 Flight . | . . . . . . . . . . . . . . . . . . . . . . . . . . . . . . . Utility 244 | . 7 2 2 . 11 16 10 2 9 13 13 1 8 6 12 . 2 4 6 4 7 9 4 6 24 15 9 23 6 13 Device 152 | . 5 2 1 . 6 7 8 1 2 6 7 . 6 4 4 . 1 3 4 4 3 8 3 5 17 9 5 14 5 12 Storage 8 | . 2 . . . 1 . . . 1 . . . . . . . . . . . . . . . 2 1 1 . . . Processor 9 | . . . . . . . . . 1 1 1 . . . 1 . . . . . . . . . 1 1 1 2 . . Hackware 10 | . . . . . . . 1 1 . 1 . . 2 . 2 . . . . . . . . . 1 . 1 1 . . Protection 65 | . . . 1 . 4 9 1 . 5 5 5 1 . 2 5 . 1 1 2 . 4 1 1 1 3 4 1 6 1 1 Artifact . | . . . . . . . . . . . . . . . . . . . . . . . . . . . . . . . Weapon 194 | . 3 1 4 . 15 7 4 2 7 10 5 4 2 9 5 2 3 8 10 1 6 3 2 16 8 8 6 16 5 22 Energy Gun 11 | . . 1 1 . 3 . . . . . . 1 . 1 . . . 1 . . . . . 2 . 1 . . . . Energy Cannon 63 | . . . 1 . 7 3 3 . 6 6 5 2 . 4 1 . . 1 1 . 2 . 1 1 1 2 1 5 2 8 Ballistic Gun 12 | . . . 1 . 3 2 1 . 1 . . . 1 2 . . . . . . . . . . . . 1 . . . Ballistic Cannon 39 | . 2 . . . . . . . . 1 . 1 1 2 2 1 2 4 5 . 2 2 . 7 4 . . 1 . 2 Launcher 38 | . 1 . . . 2 1 . 2 . 3 . . . . 2 1 1 2 4 1 2 1 1 6 . 1 1 . 1 5 Special Weapon 3 | . . . 1 . . 1 . . . . . . . . . . . . . . . . . . . . . . . 1 Impact Weapon . | . . . . . . . . . . . . . . . . . . . . . . . . . . . . . . . Slashing Weapon 12 | . . . . . . . . . . . . . . . . . . . . . . . . . 2 3 . 4 1 2 Piercing Weapon 16 | . . . . . . . . . . . . . . . . . . . . . . . . . 1 1 3 6 1 4 Special Melee Weapon . | . . . . . . . . . . . . . . . . . . . . . . . . . . . . . . . Unidentified Prototypes 44 | . . . 2 . . 1 . . 2 4 . 3 1 3 . . . 4 . . . . 3 . 7 4 3 3 . 4 Corrupted Parts 18 | . . . . . . . . . 1 . . 4 2 7 . . . . . . . . . . . . . 1 . 3 System Corruption 98 | . . . . . . . . . 7 . . 11 12 43 . . . . . . . . . . . . . 2 . 23 Parts Lost 127 | . . 2 2 . 7 7 3 3 3 10 14 2 . 1 . . . . 1 2 2 1 . 1 1 17 4 10 1 33 Power 21 | . . 1 . . . 1 . . 1 2 2 1 . . . . . . . . . . . . . 5 . 3 1 4 Propulsion 34 | . . . 2 . 2 1 2 . 1 3 4 . . . . . . . . . . . . 1 . 5 1 2 . 10 Utility 54 | . . . . . 5 4 1 2 1 5 5 1 . . . . . . 1 2 2 1 . . 1 5 1 4 . 13 Weapon 18 | . . 1 . . . 1 . 1 . . 3 . . 1 . . . . . . . . . . . 2 2 1 . 6 Highest Loss Streak 13 | . . 2 1 . 3 4 2 3 1 3 5 2 . 1 . . . . 1 1 2 1 . 1 1 10 2 8 1 13 To Critical Strikes 1 | . . . . . . . . . . . . . . . . . . . . . . . . 1 . . . . . . Average Slot Usage (%) 83 | . 99 99 95 100 99 98 91 68 74 87 88 79 73 72 74 82 82 85 81 72 68 70 64 72 78 77 66 86 95 80 Engine 2 | . 14 . 2 11 5 5 7 5 4 . 1 4 . . . . . 3 . . . . . . . . . . . . Core 1 | . . 13 8 . 3 3 . . 1 9 6 4 . . . . . . . . . . . . . . . . . . Reactor 4 | . . . . . . . . . . . . 2 6 6 5 5 5 5 5 5 5 5 5 5 7 3 4 9 12 10 Treads 12 | . 24 28 21 22 26 26 29 22 . . 4 2 12 12 11 11 11 11 11 13 15 15 15 14 11 . . . . . Wheel 2 | . . . . . . . . . 21 19 14 11 . . . . . . . . . . . . . . . . . . Hover 3 | . . . . . . . . . . . . . . . . . . . . . . . . . 4 22 17 21 27 24 Device 14 | . 13 14 20 22 17 22 15 11 5 15 21 13 6 6 11 11 11 10 13 14 15 17 20 20 19 10 7 14 19 20 Storage 6 | . 14 14 11 11 9 9 7 5 5 6 6 6 6 6 5 5 5 5 5 5 5 5 5 5 3 4 4 4 4 3 Processor 3 | . . . . . . . . . 4 5 2 . . . 1 5 5 5 5 5 5 5 5 5 4 13 16 14 12 5 Hackware 5 | . . . . . . . 6 4 . 3 6 . 11 8 10 11 11 11 7 1 . . . . . 4 5 7 8 5 Protection 11 | . . . 8 11 17 12 7 5 17 12 8 18 13 16 13 17 17 17 16 15 10 10 10 10 11 4 . 2 4 4 Energy Gun 2 | . 18 27 14 11 8 . . . . . . . . . . . . . . . . . . . . . . . . . Energy Cannon 5 | . . . 3 11 6 13 3 4 10 11 12 10 6 4 4 5 5 4 3 5 5 5 2 5 6 . . . . 2 Ballistic Cannon 2 | . 9 . . . . . . . . . . 1 5 5 5 5 5 5 4 5 5 4 . 3 3 . . . . . Peak Build Rating 200 | 6 10 14 23 21 34 37 43 41 45 63 72 106 114 115 125 126 126 144 143 161 162 158 156 160 175 134 148 179 199 200 Average Rating 96 | 6 7 12 18 21 24 31 40 29 34 54 61 80 107 109 116 125 125 132 139 150 155 152 146 156 159 117 106 143 192 156 On Entrance 90 | 6 6 9 12 21 21 33 35 41 2 41 63 66 106 108 112 125 125 126 142 143 160 154 155 156 155 125 53 140 177 199 Naked Turns 47 | . . . . . . . . 28 19 . . . . . . . . . . . . . . . . . . . . . Heaviest Build 208 | 13 51 51 65 64 115 119 125 125 121 130 153 188 189 168 169 141 141 157 158 158 166 171 162 178 208 63 69 86 90 100 Greatest Support 240 | 20 40 40 40 40 60 60 80 80 60 60 80 56 160 160 160 160 160 160 160 240 240 240 240 240 240 76 81 86 94 100 Greatest Overweight (x) 6 | . 1 1 1 1 1 1 1 1 2 2 5 6 6 1 1 . . . . . . . . . 2 1 . 1 . 1 Average Overweight (x) . | . . 1 1 1 1 1 1 . 1 1 2 2 4 . . . . . . . . . . . . . . . . . Largest Inventory Capacity 25 | 8 20 20 20 20 25 25 25 25 25 25 25 25 25 25 25 25 25 25 25 25 25 25 25 25 25 15 15 15 15 15 Average Capacity 22 | 8 10 20 20 20 23 25 25 19 21 25 25 25 25 25 25 25 25 25 25 25 25 25 25 25 21 15 15 15 15 14 Most Carried 25 | 6 20 20 20 20 25 25 25 25 16 25 25 25 25 25 25 25 25 25 25 25 24 23 25 25 25 15 15 15 15 15 Average Carried 21 | 6 9 18 19 19 22 24 24 19 8 21 24 24 24 24 23 24 25 24 24 24 22 22 24 24 21 14 14 14 14 12 Final Capacity 25 | 8 20 20 20 20 25 25 25 25 25 25 25 25 25 25 25 25 25 25 25 25 25 25 25 25 15 15 15 15 15 15 Final Carried 25 | 6 20 20 20 20 25 25 25 25 16 25 23 25 25 24 24 25 25 25 25 24 22 22 24 25 12 12 14 15 15 15 Class Distribution -------------------- 65% | Scavenger-Mutant 18% | Mutant 8% | Scavenger-Gladiator Dominant Class ---------------- Mutant | -10/Materials Mutant | -10/Mines Scavenger-Mutant | -9/Materials Mutant | -9/Mines Scavenger-Mutant | -8/Materials Scavenger-Mutant | -8/Storage Scavenger-Mutant | -7/Factory Mutant | -7/Waste Mutant | -7/Factory Scavenger-Mutant | -6/Factory Mutant | -6/Extension Scavenger-Mutant | -6/Cetus Scavenger-Mutant | -6/Archives Scavenger-Mutant | -6/Hub_04(d) Scavenger-Mutant | -5/Factory Scavenger-Mutant | -5/Upper Caves Scavenger-Mutant | -5/Upper Caves Scavenger-Mutant | -5/Warlord Scavenger-Mutant | -4/Proximity Caves Scavenger-Mutant | -4/Factory Scavenger-Mutant | -4/Upper Caves Scavenger-Mutant | -4/Upper Caves Scavenger-Mutant | -4/Zhirov Scavenger-Mutant | -3/Proximity Caves Scavenger-Tank | -3/Research Scavenger-Gladiator | -3/Testing Scavenger-Gladiator | -2/Research Scavenger-Ninja | -2/Quarantine Scavenger-Gladiator | -1/Access Scavenger-Mutant | -1/Command Resources | -11 -10 -10 -9 -9 -8 -8 -7 -7 -7 -6 -6 -6 -6 -6 -5 -5 -5 -5 -4 -4 -4 -4 -4 -3 -3 -3 -2 -2 -1 -1 ----------- Run | Yrd Mat Min Mat Min Mat Sto Fac Was Fac Fac Ext Cet Arc Hub Fac Upp Upp War Pro Fac Upp Upp Zhi Pro Res Tes Res Qua Acc Com Matter Collected 9510 | 200 370 49 316 . 494 497 312 . 591 542 507 193 171 449 193 85 118 257 498 117 267 327 95 418 681 303 210 612 203 435 Remotely 1334 | . . . . . . 287 196 . . . . . . . 124 . 25 238 63 111 21 190 . . 79 . . . . . Salvage Created 14866 | . 400 135 450 33 1533 925 267 . 677 1586 1098 466 295 342 194 . 56 100 541 143 178 373 496 599 519 1061 245 988 437 729 Parts 711 | . 19 5 23 5 100 51 11 . 18 59 38 20 24 23 9 . 6 6 19 12 10 16 2 24 6 50 8 60 38 49 Haulers Intercepted 16 | . 1 . 2 . 4 2 . . 1 2 . . . . . . . . . . . . . 1 1 . 2 . . . Recyclers Shooed 5 | . . . 1 . . . . . 1 1 1 . . . 1 . . . . . . . . . . . . . . . Parts Field Recycled . | . . . . . . . . . . . . . . . . . . . . . . . . . . . . . . . Retrieved Matter . | . . . . . . . . . . . . . . . . . . . . . . . . . . . . . . . Parts Self-Destructed 64 | . . . . . . . . . . . . . . . . 2 3 . 14 . 10 15 1 19 . . . . . . Prevented 11 | . . . . . . . . . . . . . . . . . 11 . . . . . . . . . . . . . Kills | -11 -10 -10 -9 -9 -8 -8 -7 -7 -7 -6 -6 -6 -6 -6 -5 -5 -5 -5 -4 -4 -4 -4 -4 -3 -3 -3 -2 -2 -1 -1 ------- Run | Yrd Mat Min Mat Min Mat Sto Fac Was Fac Fac Ext Cet Arc Hub Fac Upp Upp War Pro Fac Upp Upp Zhi Pro Res Tes Res Qua Acc Com Combat Hostiles Destroyed 286 | . 10 2 10 3 43 20 6 . 8 20 17 6 . 6 5 . 5 2 21 3 7 8 . 21 4 13 . 12 11 23 Melee 32 | . . . . . . . . . . . . . . . . . . . . . . . . . . 13 . 8 5 6 Guns 45 | . . 2 9 2 16 8 6 . . . . . . 2 . . . . . . . . . . . . . . . . Cannons 117 | . 10 . 1 1 19 12 . . 7 12 16 1 . 4 4 . 2 2 5 3 4 5 . 5 1 . . . . 3 AOE 71 | . . . . . 7 . . . . 6 . . . . 1 . 3 . 16 . 2 3 . 16 . . . . 6 11 Classes Destroyed 21 | . 2 1 2 . 7 1 2 . . . 1 . 1 . . . . . . . . . . 1 1 . . . 1 1 Worker 16 | . . . . . 1 2 . . 1 . . . . 1 1 . . . . . . . . . 1 . 2 . . 7 Builder 3 | . . . . . . 1 . . . . 1 . . . . . . . . . . . . . . 1 . . . . Tunneler 1 | . . . . . . . . . . . . . . . . . . . . . . . . . . . . . 1 . Hauler 16 | . 1 . 2 . 4 2 . . 1 2 . . . . . . . . . . . . . 1 1 . 2 . . . Recycler 10 | . . 1 . . 1 . . . 2 4 . . . . . . . . . . . . . . 1 1 . . . . Operator 12 | . . . . . . . . . . . . . 9 . . . . . . . . . . . . . 1 1 1 . Drone 3 | . . . . . . . . . . . . . . . . . . . . . . . . 2 . . . . 1 . Watcher 9 | . . . . . 1 . . . . 1 . . . 1 1 . . . . . . . . . . . . 3 1 1 Swarmer 75 | . . . 3 3 15 5 2 . . 4 . . . . . . 4 . 9 . 4 . . 8 . . . . 6 12 Cutter 2 | . . . . . 2 . . . . . . . . . . . . . . . . . . . . . . . . . Grunt 109 | . 10 2 4 . 15 11 . . 5 7 7 . . 3 3 . . . 11 . . 4 . 10 . 10 . 4 . 3 Brawler 3 | . . . . . 1 . . . . 1 . . . . . . . . . . . . . . . . . . . 1 Duelist 3 | . . . . . 2 . . . . . 1 . . . . . . . . . . . . . . . . . . . Protector 4 | . . . . . 1 . . . . . . . . 1 . . . 2 . . . . . . . . . . . . Sentry 31 | . . . 3 . 6 4 2 . 1 3 6 . . . 1 . . . 1 1 . 1 . . 2 . . . . . Hunter 13 | . . . . . . . 1 . . 2 1 . . . 1 . 1 . . . 2 2 . . . 2 . 1 . . Programmer 21 | . . . . . . . 1 . 2 3 . . . 1 . . . . . 2 . 1 . 1 . 1 . 3 4 2 Heavy 1 | . . . . . 1 . . . . . . . . . . . . . . . . . . . . . . . . . Behemoth 3 | . . . . . . . . . . . 2 . . . . . . . . . 1 . . . . . . . . . Cetus Guard 6 | . . . . . . . . . . . . 6 . . . . . . . . . . . . . . . . . . Quarantine Guard 4 | . . . . . . . . . . . . . . . . . . . . . . . . . . . . 4 . . M Guard 1 | . . . . . . . . . . . . . . . . . . . . . . . . . . . . . . 1 Lightning 1 | . . . . . . . . . . . . . . 1 . . . . . . . . . . . . . . . . Combat Programmer 2 | . . . . . . . . . . . . . . . . . . . . . . . . . . . . . . 2 Striker 2 | . . . . . . . . . . . . . . . . . . . . . . . . . 2 . . . . . Alpha 7 1 | . . . . . . . . . . . . . . . . . . . . . . . . . . . . . . 1 Decomposer 1 | . . . . . . . . . . . . . . . . . . . . . 1 . . . . . . . . . Thug 1 | . . . . . . . . . . . . . . . . . . 1 . . . . . . . . . . . . Best Kill Streak 14 | . 2 2 3 3 14 9 2 . 4 7 6 3 3 4 6 . 4 2 5 2 4 4 . 10 2 6 1 5 7 7 Combat Bots Only 13 | . 2 2 3 3 13 7 2 . 3 6 5 3 . 2 4 . 4 2 5 2 4 4 . 10 2 5 . 4 6 5 Max Kills in Single Turn 5 | . 1 1 1 1 3 2 1 . 1 3 1 1 1 1 2 . 3 1 3 1 2 2 . 2 1 1 1 1 5 3 Gunslinging 1 | . . . . . 1 . . . . . . . . . . . . . . . . . . . . . . . . . Exploded 4 | . . . . . 2 . . . . 3 . . . . 1 . 3 . 3 . 2 2 . 2 . . . . 4 3 Melee 1 | . . . . . . . . . . . . . . . . . . . . . . . . . . 1 . 1 1 1 Uniques/NPCs Destroyed 1 | . . . . . . . . . . . . . . . . . . . . . . . . . . . . . . 1 MAIN.C Shell (-1/Command) Combat | -11 -10 -10 -9 -9 -8 -8 -7 -7 -7 -6 -6 -6 -6 -6 -5 -5 -5 -5 -4 -4 -4 -4 -4 -3 -3 -3 -2 -2 -1 -1 -------- Run | Yrd Mat Min Mat Min Mat Sto Fac Was Fac Fac Ext Cet Arc Hub Fac Upp Upp War Pro Fac Upp Upp Zhi Pro Res Tes Res Qua Acc Com Hostile Shots Fired 2535 | . 34 22 47 14 239 124 139 2 72 161 376 35 15 80 36 . 23 18 97 24 67 72 . 95 38 174 24 151 92 264 Missed 829 | . 10 7 14 2 70 34 48 . 20 59 132 7 3 24 11 . 3 5 27 5 9 18 . 22 14 57 14 62 57 95 Intercepted 11 | . . . . . . . . . . . . . . . . . . . . . . . . . . . . . . 11 Damage Taken 28417 | . 275 192 431 93 2285 1418 947 262 656 1419 2330 351 194 1108 448 . 334 144 946 329 1012 533 . 933 424 2523 214 2088 805 5723 Core 3791 | . 57 10 81 . 197 148 16 44 130 168 255 13 32 57 . . . 12 53 11 . 33 . 65 55 399 . 292 25 1638 Absorbed by Shields 3235 | . . . . . . . . . . . 22 101 . . . . . 134 486 51 431 342 . 626 264 218 . 132 73 355 Reduced by Siege Mode 303 | . . . . . . . . . . . . . . 51 11 . 4 12 63 14 76 28 . 40 4 . . . . . Redirected to Shielding 219 | . . . . . . . . . 53 69 . . . . . . . . . . . . . . . . . 97 . . Ignored by Resistances 984 | . . . . . . . . . . . 166 288 109 18 52 . . 128 28 29 . 166 . . . . . . . . Regen/Repaired (Parts) 1885 | . . . . . . . . . . . . . . . . . . 257 . . . . . . . 251 . 590 356 431 Core Remaining (%) 72 | 100 . 73 . 79 . 37 . . 72 . . . . 38 . . . . 93 . . . . 90 . 65 . 75 . . Volleys Fired 1016 | . 36 9 41 6 122 78 51 3 45 69 70 16 66 31 19 1 8 12 53 12 40 39 14 39 32 11 . 16 6 71 Largest 3 | . 2 2 2 2 2 2 2 2 2 2 2 2 2 2 2 1 2 2 2 2 2 2 1 2 3 1 . 1 1 1 Hottest 240 | . 85 115 138 138 160 160 105 66 178 178 178 112 125 125 130 90 130 240 130 130 138 138 98 178 236 113 . 120 130 130 Shots Fired 1604 | . 71 19 80 12 213 133 85 6 65 121 133 31 68 54 33 1 14 22 71 21 56 50 14 61 64 11 . 17 6 72 Gun 369 | . 35 16 54 6 89 59 65 . . . . . . 32 . . . 1 . . . . . 6 . 6 . . . . Cannon 1141 | . 35 3 25 6 116 73 20 . 65 116 133 31 68 22 31 1 12 20 46 21 55 46 14 37 64 2 . 17 3 59 Launcher 92 | . 1 . . . 8 1 . 6 . 5 . . . . 2 . 2 1 25 . 1 4 . 18 . 3 . . 3 12 Special 2 | . . . 1 . . . . . . . . . . . . . . . . . . . . . . . . . . 1 Kinetic 369 | . 35 3 22 . 29 59 65 . . . . . 2 46 12 . 6 20 3 9 13 12 . 11 12 . . . . 10 Thermal 1077 | . 35 16 58 12 176 73 20 . 65 115 133 . 66 8 19 1 6 1 43 12 42 34 14 32 52 2 . 1 3 38 Explosive 92 | . 1 . . . 8 1 . 6 . 5 . . . . 2 . 2 1 25 . 1 4 . 18 . 3 . . 3 12 Electromagnetic 65 | . . . . . . . . . . 1 . 31 . . . . . . . . . . . . . 6 . 16 . 11 Robot Hit Streak 23 | . 10 7 14 4 19 9 14 7 9 22 19 10 6 14 23 . 7 13 14 4 18 8 11 17 12 1 . 6 9 15 Robot Miss Streak 6 | . 2 2 3 5 6 3 2 . 2 2 3 1 3 6 1 . 2 1 1 1 2 2 1 2 3 5 . 1 . 2 Penetration Max 1 | . . . . . . . . . . . . . . 1 . . . . . . . . . . . . . . . . Secondary Targets 6 | . . 1 . . 1 1 1 . . . . . . 2 . . . . . . . . . . . . . . . . Max Gunslinging Chain 1 | . . 1 . . 1 1 1 . . . . . . 1 . . . . . . . . . . . . . . . . Capacitor 30 | . . . . . . . . . . . . . . . . . . . . . 30 . . . . . . . . . Shots Hit Robots 1134 | . 51 14 52 5 130 79 48 6 45 83 94 26 36 31 24 . 8 16 39 12 37 18 13 37 38 58 11 46 13 64 Core Hits 630 | . 17 6 20 4 105 36 14 2 16 45 33 10 18 15 14 . 7 8 48 4 13 21 6 49 10 25 5 18 15 46 Critical Kills 11 | . . . . . 1 . . . . 3 . . . 3 . . . . . . 1 . . . 1 . . . . 2 Critical Parts Destroyed 2 | . . . . . . . . . . . . . . 2 . . . . . . . . . . . . . . . . Critical Strikes 45 | . 7 1 2 . 1 . . . . 3 . 2 . 6 1 . . 3 . . 1 1 . 1 1 7 1 5 . 2 Burn 7 | . 4 1 2 . . . . . . . . . . . . . . . . . . . . . . . . . . . Meltdown 8 | . . . . . 1 . . . . 3 . . . . . . . . . . 1 . . . 1 . . . . 2 Destroy 5 | . . . . . . . . . . . . . . 5 . . . . . . . . . . . . . . . . Blast 10 | . 3 . . . . . . . . . . . . 1 1 . . 3 . . . 1 . 1 . . . . . . Corrupt 2 | . . . . . . . . . . . . 2 . . . . . . . . . . . . . . . . . . Sever 6 | . . . . . . . . . . . . . . . . . . . . . . . . . . 4 . 2 . . Impale 7 | . . . . . . . . . . . . . . . . . . . . . . . . . . 3 1 3 . . Melee Attacks 268 | . . . . . . . . . . . . . . . . . . . . . . . . . . 90 18 91 43 26 Impact . | . . . . . . . . . . . . . . . . . . . . . . . . . . . . . . . Slashing 98 | . . . . . . . . . . . . . . . . . . . . . . . . . . 22 11 25 23 17 Piercing 170 | . . . . . . . . . . . . . . . . . . . . . . . . . . 68 7 66 20 9 Sneak Attacks 13 | . . . . . . . . . . . . . . . . . . . . . . . . . . 3 4 1 1 4 Combat Hostiles 1 | . . . . . . . . . . . . . . . . . . . . . . . . . . 1 . . . . Follow-up Attacks 26 | . . . . . . . . . . . . . . . . . . . . . . . . . . 14 1 8 2 1 Damage Inflicted 46968 | . 841 203 983 145 3879 1802 898 464 1392 3241 2729 529 1113 949 1135 . 463 646 3333 319 1540 1003 429 3438 1432 3134 847 2178 1645 6258 Guns 4279 | . 369 165 557 55 1047 787 819 . . . . . . 322 . . . . . . . . . 136 . 22 . . . . Cannons 22435 | . 472 32 422 54 1448 938 53 . 1386 2373 2729 529 1113 627 805 . 227 646 730 319 1334 544 429 856 1347 . . 416 . 2606 Explosions 12517 | . . . . . 1359 30 . 464 . 855 . . . . 330 . 236 . 2603 . 193 459 . 2446 . 226 . . 787 2529 Melee 7445 | . . . . . . . . . . . . . . . . . . . . . . . . . . 2886 847 1762 858 1092 Ramming 292 | . . 6 4 36 25 47 26 . 6 13 . . . . . . . . . . 13 . . . 85 . . . . 31 Kinetic 5778 | . 472 32 232 . 306 787 819 . . . . . 37 698 311 . 71 646 117 163 133 237 . 262 229 . . . . 226 Thermal 20343 | . 369 165 747 109 2606 938 53 . 1386 2337 2729 . 1076 251 494 . 156 . 613 156 1270 307 429 730 1118 97 . . . 2207 Explosive 11934 | . . . . . 942 30 . 464 . 855 . . . . 330 . 236 . 2603 . 124 459 . 2446 . 129 . . 787 2529 Electromagnetic 1176 | . . . . . . . . . . 36 . 529 . . . . . . . . . . . . . 22 . 416 . 173 Impact . | . . . . . . . . . . . . . . . . . . . . . . . . . . . . . . . Slashing 3237 | . . . . . . . . . . . . . . . . . . . . . . . . . . 654 575 399 761 848 Piercing 4208 | . . . . . . . . . . . . . . . . . . . . . . . . . . 2232 272 1363 97 244 Highest Corruption 46 | . 1 1 . . . . 2 17 25 5 7 14 14 46 . . . . . 5 5 6 6 7 . 3 . 12 2 35 Average Corruption 7 | . 1 1 . . . . 1 7 23 4 4 6 6 20 . . . . . 4 5 5 6 6 . 2 . 9 1 9 Corruption Purged 33 | . . . . . . . . . . . 7 . 26 . . . . . . . . . . . . . . . . . Corruption Blocked . | . . . . . . . . . . . . . . . . . . . . . . . . . . . . . . . Effects 352 | . 3 4 . . . . 11 3 58 17 31 15 19 13 . . . . . 3 21 35 8 28 . 2 . 39 3 39 Message Errors 74 | . 2 2 . . . . 3 . 9 4 9 5 2 4 . . . . . . 2 9 1 7 . . . 7 . 8 Matter Fused 92 | . . 1 . . . . 6 2 6 5 9 5 6 4 . . . . . 2 4 12 3 8 . 1 . 9 1 8 Heat Flow Errors 30 | . . . . . . . . . 7 1 2 . 2 . . . . . . 1 . 4 . . . 1 . 5 1 6 Energy Discharges 35 | . 1 . . . . . . 1 6 2 1 1 2 2 . . . . . . 4 2 2 2 . . . 8 . 1 Parts Rejected 3 | . . . . . . . . . . 1 . . . . . . . . . . 1 . . . . . . . 1 . Parts Fused 4 | . . . . . . . . . . . 1 . . . . . . . . . 1 . . . . . . 2 . . Data Loss (minor) 49 | . . . . . . . 2 . 14 2 3 4 3 1 . . . . . . 2 6 1 4 . . . 4 . 3 Data Loss (major) 17 | . . . . . . . . . 3 . 1 . 2 . . . . . . . 2 1 1 1 . . . 3 . 3 Misfires 19 | . . 1 . . . . . . 3 1 2 . 1 . . . . . . . 4 . . 4 . . . 1 . 2 Alerts 9 | . . . . . . . . . 2 1 3 . . . . . . . . . . . . . . . . . . 3 Misdirections 9 | . . . . . . . . . 4 . . . . 1 . . . . . . . . . . . . . . . 4 Weapon Failures 11 | . . . . . . . . . 4 . . . 1 1 . . . . . . 1 1 . 2 . . . . . 1 Overload Shots 1 | . . . . . . . . . . . . . . . . . . 1 . . . . . . . . . . . . Overflow Damage 1891 | . 7 . . . 56 8 . 30 17 8 45 . 106 19 11 . . 9 132 . 7 . 43 108 40 212 88 267 187 491 Projectiles 547 | . 7 . . . 16 8 . . 17 8 45 . 106 19 11 . . 9 . . 7 . 43 46 23 . . 1 . 181 Explosions 433 | . . . . . 40 . . 30 . . . . . . . . . . 132 . . . . 62 . 7 . . 22 140 Melee 911 | . . . . . . . . . . . . . . . . . . . . . . . . . 17 205 88 266 165 170 Knockbacks 21 | . 7 1 . . . 1 . . . . . . . 2 2 . 2 . 1 . 1 1 . 1 1 . . . . 1 Impact 3 | . . . . . . 1 . . . . . . . . . . . . . . 1 . . . 1 . . . . . Kinetic 18 | . 7 1 . . . . . . . . . . . 2 2 . 2 . 1 . . 1 . 1 . . . . . 1 Secondary . | . . . . . . . . . . . . . . . . . . . . . . . . . . . . . . . Self-Inflicted Damage 380 | . . . . . . . . 177 3 6 . . . . . . . . 101 . . . . . . 57 . . . 36 Shots 10 | . . . . . . . . 6 . . . . . . . . . . 2 . . . . . . 1 . . . 1 Rammed 22 | . . . 1 4 3 7 1 . 1 1 . . . . . . . . . . 2 . . . 1 . . . . 1 Targets Rammed 26 | . . 1 1 4 3 9 1 . 1 1 . . . . . . . . . . 2 . . . 2 . . . . 1 Kicked . | . . . . . . . . . . . . . . . . . . . . . . . . . . . . . . . Crushed 4 | . . 1 . . . 2 . . . . . . . . . . . . . . . . . . 1 . . . . . Highest Temperature 430 | . 198 112 180 270 374 256 108 42 348 360 430 . 333 357 4 . . 146 16 108 234 239 88 126 251 191 . 240 247 414 Average Temperature 86 | . 68 57 50 139 70 60 35 22 111 107 120 . 85 118 1 . . 78 6 58 96 102 33 53 87 109 . 93 28 94 Received Heat Transfer 6063 | . 174 108 186 . 972 702 156 . 303 321 793 22 27 429 145 . . . 253 27 58 101 . 94 29 329 9 78 . 747 Effects 16 | . . . . . 2 . . . 2 1 1 . . 3 . . . . . . 2 . . . . . . . . 5 Shutdowns 4 | . . . . . . . . . . . 1 . . . . . . . . . . . . . . . . . . 3 Energy Bleed 2 | . . . . . . . . . 1 1 . . . . . . . . . . . . . . . . . . . . Interference 6 | . . . . . 1 . . . . . . . . 3 . . . . . . 2 . . . . . . . . . Short Circuit 3 | . . . . . 1 . . . . . . . . . . . . . . . . . . . . . . . . 2 Damage (minor) 1 | . . . . . . . . . 1 . . . . . . . . . . . . . . . . . . . . . Siege Activations 29 | . . . . . . . . . . . . . 3 3 1 . 1 1 6 2 2 3 . 5 2 . . . . . Total Turns 406 | . . . . . . . . . . . . . 7 63 37 . 9 21 74 28 53 35 . 61 18 . . . . . Longest Duration 52 | . . . . . . . . . . . . . 3 52 37 . 9 21 29 19 28 20 . 26 11 . . . . . Robots Corrupted 12 | . . . . . . . . . . . . 5 . . . . . . . . . . . . 1 . . 4 . 2 Combat Hostiles 10 | . . . . . . . . . . . . 5 . . . . . . . . . . . . . . . 4 . 1 Parts Fried 23 | . . . . . . . . . . . . 6 . . . . . . . . . . . . 4 . . 10 . 3 Impact Corruptions 2 | . . . . . . . . . . . . . . . . . . . . . . . . . 1 . . . . 1 Robots Melted 12 | . . . . . 1 . . . 1 3 1 . . . . . . . . . 1 . . . 3 . . . . 2 Combat Hostiles 11 | . . . . . 1 . . . 1 2 1 . . . . . . . . . 1 . . . 3 . . . . 2 Parts Melted 71 | . 3 . 3 2 4 1 1 . 8 16 21 . 2 . . . . . . . . 1 1 2 5 . . 1 . . Heat Transferred 26798 | . 1332 518 1517 185 4385 1800 100 . 2300 3900 4458 . 1332 296 . . . . . . 350 450 574 998 1612 50 . . . 641 Parts Sabotaged . | . . . . . . . . . . . . . . . . . . . . . . . . . . . . . . . Parts Stolen . | . . . . . . . . . . . . . . . . . . . . . . . . . . . . . . . Parts Stripped . | . . . . . . . . . . . . . . . . . . . . . . . . . . . . . . . Power Chain Reactions 2 | . . . . . . . . . . . . . . . . . . . . . 1 . . . . 1 . . . . Alert | -11 -10 -10 -9 -9 -8 -8 -7 -7 -7 -6 -6 -6 -6 -6 -5 -5 -5 -5 -4 -4 -4 -4 -4 -3 -3 -3 -2 -2 -1 -1 ------- Run | Yrd Mat Min Mat Min Mat Sto Fac Was Fac Fac Ext Cet Arc Hub Fac Upp Upp War Pro Fac Upp Upp Zhi Pro Res Tes Res Qua Acc Com Peak Influence 1025 | . 149 51 203 104 1024 741 391 92 237 318 212 348 414 399 419 . . . . 241 . . . . 851 495 349 198 622 1025 Initial 650 | . . 21 1 62 . 432 325 81 57 65 100 103 59 . 195 . . . . 109 . . . . 650 282 201 45 69 397 Average 182 | . 66 33 69 42 138 527 261 81 118 130 84 197 36 197 245 . . . . 129 . . . . 650 377 231 77 225 831 Maximum Alert Level 3 | . . . 1 . 3 3 1 . 1 1 1 1 2 1 2 . . . . 1 . . . . 3 2 1 . 2 3 Low Security (%) 67 | 100 100 100 94 100 80 . 16 100 80 73 99 77 88 38 5 . . . . 94 . . . . . . 38 100 57 . Level 1 16 | . . . 5 . 10 13 83 . 19 26 . 22 10 61 91 . . . . 5 . . . . . 55 61 . 24 . Level 2 10 | . . . . . 3 75 . . . . . . . . 2 . . . . . . . . . 75 44 . . 17 18 Level 3 5 | . . . . . 5 10 . . . . . . . . . . . . . . . . . . 24 . . . . 80 Level 4 . | . . . . . . . . . . . . . . . . . . . . . . . . . . . . . . . Level 5 . | . . . . . . . . . . . . . . . . . . . . . . . . . . . . . . . High Security . | . . . . . . . . . . . . . . . . . . . . . . . . . . . . . . . Max Security . | . . . . . . . . . . . . . . . . . . . . . . . . . . . . . . . Squads Dispatched 56 | . 1 1 . . 8 7 2 . 2 7 4 . . 4 . . . . . 1 . . . . 6 2 1 4 2 4 Investigation 10 | . . 1 . . . . . . 1 . 1 . . 3 . . . . . . . . . . 1 1 . 1 . 1 Extermination 11 | . . . . . . . 1 . 1 2 . . . 1 . . . . . 1 . . . . . 1 . 1 1 2 Reinforcement 25 | . 1 . . . 5 4 1 . . 2 3 . . . . . . . . . . . . . 5 . 1 2 1 . Assault 2 | . . . . . 1 . . . . . . . . . . . . . . . . . . . . . . . . 1 Garrison 8 | . . . . . 2 3 . . . 3 . . . . . . . . . . . . . . . . . . . . Intercept . | . . . . . . . . . . . . . . . . . . . . . . . . . . . . . . . Searches Triggered 1 | . . . . . . . . . . . . . . . . . . . . . . . . . . 1 . . . . Construction Impeded 2 | . . . . . 1 . . . . . 1 . . . . . . . . . . . . . . . . . . . Haulers Reinforced 6 | . . . . . . . . . . 2 . . . . . . . . . . . . . . 3 . 1 . . . Active Scanning Responses . | . . . . . . . . . . . . . . . . . . . . . . . . . . . . . . . Cargo Convoy Interrupts . | . . . . . . . . . . . . . . . . . . . . . . . . . . . . . . . Stealth | -11 -10 -10 -9 -9 -8 -8 -7 -7 -7 -6 -6 -6 -6 -6 -5 -5 -5 -5 -4 -4 -4 -4 -4 -3 -3 -3 -2 -2 -1 -1 --------- Run | Yrd Mat Min Mat Min Mat Sto Fac Was Fac Fac Ext Cet Arc Hub Fac Upp Upp War Pro Fac Upp Upp Zhi Pro Res Tes Res Qua Acc Com Distress Signals 46 | . 3 . 5 . 6 4 . . 1 1 3 2 . . 1 . . . . . . . . 1 5 . 6 1 5 2 Communications Jammed 178 | . . . . . . 4 . . . . . . . 38 2 . . . . . . . . 4 . 59 6 17 39 9 Distress Signals 154 | . . . . . . 4 . . . . . . . 38 2 . . . . . . . . . . 58 6 17 20 9 Times Spotted 582 | . 21 3 19 5 61 36 11 6 15 24 29 11 37 20 9 . 5 43 22 4 6 8 . 25 16 29 21 28 25 43 Peak Tracking Total 13 | . 3 2 6 4 8 5 4 6 5 8 6 5 3 7 5 . 4 13 4 2 2 3 . 5 3 5 4 6 8 6 Tactical Retreats 34 | . . . 1 1 3 3 2 . . 1 2 . . 4 . . . 2 1 . . . . . 1 4 1 . 3 5 Traps | -11 -10 -10 -9 -9 -8 -8 -7 -7 -7 -6 -6 -6 -6 -6 -5 -5 -5 -5 -4 -4 -4 -4 -4 -3 -3 -3 -2 -2 -1 -1 ------- Run | Yrd Mat Min Mat Min Mat Sto Fac Was Fac Fac Ext Cet Arc Hub Fac Upp Upp War Pro Fac Upp Upp Zhi Pro Res Tes Res Qua Acc Com Traps Triggered 17 | . 1 . . . . 1 1 . 2 3 5 . . . 2 . . . . . . . . . . 1 . . 1 . Indirectly . | . . . . . . . . . . . . . . . . . . . . . . . . . . . . . . . Trap Hack Attempts . | . . . . . . . . . . . . . . . . . . . . . . . . . . . . . . . Triggered . | . . . . . . . . . . . . . . . . . . . . . . . . . . . . . . . Disarmed . | . . . . . . . . . . . . . . . . . . . . . . . . . . . . . . . Reprogrammed . | . . . . . . . . . . . . . . . . . . . . . . . . . . . . . . . Reused . | . . . . . . . . . . . . . . . . . . . . . . . . . . . . . . . Traps Extracted . | . . . . . . . . . . . . . . . . . . . . . . . . . . . . . . . Installed . | . . . . . . . . . . . . . . . . . . . . . . . . . . . . . . . Triggered 16 | . . . . . . . . . . . . . . . . 2 . 11 2 . . 1 . . . . . . . . Most Traps Carried 1 | . . . . . . . . . . . . . . . . 1 1 1 . . . . . . . . . . . . Machines | -11 -10 -10 -9 -9 -8 -8 -7 -7 -7 -6 -6 -6 -6 -6 -5 -5 -5 -5 -4 -4 -4 -4 -4 -3 -3 -3 -2 -2 -1 -1 ---------- Run | Yrd Mat Min Mat Min Mat Sto Fac Was Fac Fac Ext Cet Arc Hub Fac Upp Upp War Pro Fac Upp Upp Zhi Pro Res Tes Res Qua Acc Com Machines Disabled 50 | . 1 . 3 . 10 3 1 . 3 3 3 . 6 3 . . . 1 . . . . 1 . 2 6 . 4 . . Max in Single Turn 7 | . 1 . 1 . 7 1 1 . 1 1 1 . 1 1 . . . 1 . . . . 1 . 1 2 . 1 . . Garrison Access 8 | . . . . . 1 . . . . . . . . . 1 . . . . . . . . . 2 1 . 1 2 . Network Hub 3 | . . . . . . . . . . . . . . 3 . . . . . . . . . . . . . . . . Machines Repaired . | . . . . . . . . . . . . . . . . . . . . . . . . . . . . . . . Machines Dismantled 1 | . . . . . . 1 . . . . . . . . . . . . . . . . . . . . . . . . Machines Sabotaged 1 | . . . . . . . . . . . . . . 1 . . . . . . . . . . . . . . . . Overloaded Fab Kills . | . . . . . . . . . . . . . . . . . . . . . . . . . . . . . . . Hacking | -11 -10 -10 -9 -9 -8 -8 -7 -7 -7 -6 -6 -6 -6 -6 -5 -5 -5 -5 -4 -4 -4 -4 -4 -3 -3 -3 -2 -2 -1 -1 --------- Run | Yrd Mat Min Mat Min Mat Sto Fac Was Fac Fac Ext Cet Arc Hub Fac Upp Upp War Pro Fac Upp Upp Zhi Pro Res Tes Res Qua Acc Com Machines Accessed 111 | . 6 1 3 . 9 6 4 . 7 8 10 1 . 4 2 . . 2 1 3 . . 4 . 5 6 3 11 10 5 Terminals 74 | . 6 . 3 . 7 6 1 . 5 4 10 1 . 4 1 . . . 1 2 . . . . 2 2 3 7 5 4 Fabricators 5 | . . . . . . . . . 1 2 . . . . . . . . . . . . . . 1 . . . 1 . Repair Stations 6 | . . . . . . . . . 1 . . . . . . . . . . . . . . . . 2 . 2 . 1 Recycling Units 8 | . . . . . 2 . 2 . . 2 . . . . . . . . . 1 . . . . . . . . 1 . Scanalyzers 2 | . . . . . . . . . . . . . . . . . . . . . . . . . . 1 . 1 . . Garrison Access 9 | . . . . . . . 1 . . . . . . . 1 . . . . . . . . . 2 1 . 1 3 . Total Hacks 328 | . 13 1 10 . 22 13 8 . 10 14 25 1 . 13 7 . . 7 1 8 . . 17 . 20 21 22 46 27 22 Successful 151 | . 5 1 5 . 6 6 3 . 1 2 11 1 . 8 2 . . 7 1 3 . . 17 . 6 8 6 25 15 12 Failed 177 | . 8 . 5 . 16 7 5 . 9 12 14 . . 5 5 . . . . 5 . . . . 14 13 16 21 12 10 Catastrophic 44 | . 2 . 1 . 7 3 . . 4 5 3 . . . . . . . . 1 . . . . 6 3 3 2 4 . Database Lockouts . | . . . . . . . . . . . . . . . . . . . . . . . . . . . . . . . Manual 114 | . 7 . 6 . 15 1 . . 5 4 12 1 . 7 6 . . . . 2 . . . . 3 1 11 17 6 10 Terminals 228 | . 13 . 10 . 15 13 2 . 8 7 25 1 . 13 6 . . . 1 6 . . . . 11 9 22 30 16 20 Fabricators 13 | . . . . . . . . . 1 4 . . . . . . . . . . . . . . 5 . . . 3 . Repair Stations 25 | . . . . . . . . . 1 . . . . . . . . . . . . . . . . 8 . 14 . 2 Recycling Units 17 | . . . . . 7 . 3 . . 3 . . . . . . . . . 2 . . . . . . . . 2 . Scanalyzers 4 | . . . . . . . . . . . . . . . . . . . . . . . . . . 3 . 1 . . Garrison Access 16 | . . . . . . . 3 . . . . . . . 1 . . . . . . . . . 4 1 . 1 6 . Terminal Hacks 96 | . 5 1 3 . 3 6 2 . . . 9 1 . 4 1 . . 7 1 2 . . 17 . 2 2 4 11 9 6 Record 9 | . . . . . . . . . . . . . . . . . . . 1 . . . 5 . . 2 . 1 . . Part Schematic 7 | . . . . . . . . . . . . . . . . . . . . 1 . . 4 . . . 1 1 . . Robot Analysis 8 | . 2 . 1 . 1 . . . . . . . . . . . . . . . . . 4 . . . . . . . Prototype ID Bank 12 | . . . . . . 1 . . . . . . . . . . . 6 . . . . 4 . . . . . . 1 Open Door 13 | . . 1 . . . 2 . . . . 5 1 . . . . . 1 . . . . . . . . . . 2 1 Level Access Points 1 | . . . . . . . . . . . . . . . . . . . . . . . . . . . 1 . . . Branch Access Points 5 | . . . . . 1 . . . . . . . . . 1 . . . . . . . . . 1 . 1 . 1 . Emergency Access Points 3 | . 1 . . . . . . . . . . . . . . . . . . . . . . . . . . . 1 1 Machine Index 2 | . . . . . . . . . . . . . . 1 . . . . . . . . . . . . . 1 . . Terminal Index 2 | . . . . . . . 1 . . . . . . . . . . . . . . . . . . . . . . 1 Fabricator Index 2 | . . . . . . . . . . . . . . . . . . . . . . . . . 1 . 1 . . . Repair Station Index 1 | . . . . . . . . . . . . . . . . . . . . . . . . . . . . 1 . . Alert Level 5 | . . . . . . 1 . . . . 1 . . 1 . . . . . . . . . . . . . 1 . 1 Unreport Threat 5 | . . . . . 1 1 . . . . 1 . . 1 . . . . . . . . . . . . . 1 . . Locate Traps 6 | . . . 1 . . . 1 . . . 1 . . . . . . . . 1 . . . . . . . 1 1 . Security Status 1 | . . . . . . . . . . . 1 . . . . . . . . . . . . . . . . . . . Patrol Status 2 | . . . . . . . . . . . . . . . . . . . . . . . . . . . . 1 1 . Recall Investigation 1 | . . . . . . . . . . . . . . . . . . . . . . . . . . . . 1 . . Hauler Manifests 1 | . 1 . . . . . . . . . . . . . . . . . . . . . . . . . . . . . Registered Components 3 | . . . . . . 1 . . . . . . . . . . . . . . . . . . . . . 1 1 . Zone Layout 6 | . 1 . 1 . . . . . . . . . . 1 . . . . . . . . . . . . . 1 2 . Disengage Seal 1 | . . . . . . . . . . . . . . . . . . . . . . . . . . . . . . 1 Fabricator Hacks 4 | . . . . . . . . . . 1 . . . . . . . . . . . . . . 2 . . . 1 . Network Status 2 | . . . . . . . . . . 1 . . . . . . . . . . . . . . . . . . 1 . Load Schematic 1 | . . . . . . . . . . . . . . . . . . . . . . . . . 1 . . . . . Build 1 | . . . . . . . . . . . . . . . . . . . . . . . . . 1 . . . . . Repair Station Hacks 13 | . . . . . . . . . 1 . . . . . . . . . . . . . . . . 3 . 7 . 2 Scan Component 7 | . . . . . . . . . . . . . . . . . . . . . . . . . . 2 . 4 . 1 Repair 5 | . . . . . . . . . . . . . . . . . . . . . . . . . . 1 . 3 . 1 Refit 1 | . . . . . . . . . 1 . . . . . . . . . . . . . . . . . . . . . Recycling Unit Hacks 6 | . . . . . 2 . 1 . . 1 . . . . . . . . . 1 . . . . . . . . 1 . Retrieve Components 6 | . . . . . 2 . 1 . . 1 . . . . . . . . . 1 . . . . . . . . 1 . Scanalyzer 2 | . . . . . . . . . . . . . . . . . . . . . . . . . . 1 . 1 . . Insert Component 2 | . . . . . . . . . . . . . . . . . . . . . . . . . . 1 . 1 . . Garrison Access Hacks 6 | . . . . . . . . . . . . . . . 1 . . . . . . . . . 1 1 . 1 2 . Seal Access 6 | . . . . . . . . . . . . . . . 1 . . . . . . . . . 1 1 . 1 2 . Unauthorized Hacks 24 | . . . 2 . 1 . . . . . 2 . . 4 . . . . . . . . . . 1 1 2 5 2 4 Terminals 21 | . . . 2 . 1 . . . . . 2 . . 4 . . . . . . . . . . 1 . 2 4 1 4 Track 2 | . . . . . . . . . . . . . . 1 . . . . . . . . . . . . . . . 1 Assimilate 2 | . . . . . . . . . . . . . . . . . . . . . . . . . . . . 2 . . Botnet 11 | . . . 1 . . . . . . . 1 . . 1 . . . . . . . . . . 1 . 2 2 1 2 Operators 4 | . . . 1 . 1 . . . . . 1 . . . . . . . . . . . . . . . . . . 1 Sabotage 2 | . . . . . . . . . . . . . . 2 . . . . . . . . . . . . . . . . Fabricators . | . . . . . . . . . . . . . . . . . . . . . . . . . . . . . . . Repair Stations 2 | . . . . . . . . . . . . . . . . . . . . . . . . . . 1 . 1 . . Patch 2 | . . . . . . . . . . . . . . . . . . . . . . . . . . 1 . 1 . . Recycling Units 1 | . . . . . . . . . . . . . . . . . . . . . . . . . . . . . 1 . Recyclers 1 | . . . . . . . . . . . . . . . . . . . . . . . . . . . . . 1 . Scanalyzers . | . . . . . . . . . . . . . . . . . . . . . . . . . . . . . . . Garrison Access . | . . . . . . . . . . . . . . . . . . . . . . . . . . . . . . . Data Cores Recovered 2 | . . . . . . . . . . . . . . 1 . . . . . . . . . . . . . . 1 . Used 2 | . . . . . . . . . . . . . . 1 . . . . . . . . . . . . . . 1 . Hacking Detections 84 | . 6 . 3 . 9 4 4 . 7 8 7 . . 2 1 . . . . 3 . . . . 4 4 3 9 5 5 Full Trace Events 2 | . . . . . . . . . 1 . . . . . . . . . . . . . . . 1 . . . . . Feedback Events . | . . . . . . . . . . . . . . . . . . . . . . . . . . . . . . . Feedback Blocked . | . . . . . . . . . . . . . . . . . . . . . . . . . . . . . . . Robot Schematics Acquired . | . . . . . . . . . . . . . . . . . . . . . . . . . . . . . . . Robots Built . | . . . . . . . . . . . . . . . . . . . . . . . . . . . . . . . Authchips . | . . . . . . . . . . . . . . . . . . . . . . . . . . . . . . . Time . | . . . . . . . . . . . . . . . . . . . . . . . . . . . . . . . Total Robot Build Rating . | . . . . . . . . . . . . . . . . . . . . . . . . . . . . . . . Part Schematics Acquired 7 | . . . . . . . . . . . . . . . . . . . . 1 . . 4 . . . 1 1 . . Parts Built 1 | . . . . . . . . . . . . . . . . . . . . . . . . . 1 . . . . . Authchips . | . . . . . . . . . . . . . . . . . . . . . . . . . . . . . . . Time 53 | . . . . . . . . . . . . . . . . . . . . . . . . . 53 . . . . . Total Part Build Rating 6 | . . . . . . . . . . . . . . . . . . . . . . . . . 6 . . . . . Parts Repaired 5 | . . . . . . . . . . . . . . . . . . . . . . . . . . 1 . 3 . 1 Time 280 | . . . . . . . . . . . . . . . . . . . . . . . . . . 95 . 163 . 22 Parts Recycled . | . . . . . . . . . . . . . . . . . . . . . . . . . . . . . . . Recycled Matter . | . . . . . . . . . . . . . . . . . . . . . . . . . . . . . . . Retrieved Matter . | . . . . . . . . . . . . . . . . . . . . . . . . . . . . . . . Retrieved Components 26 | . . . . . 19 . 3 . . . . . . . . . . . . 2 . . . . . . . . 2 . Parts Scanalyzed 1 | . . . . . . . . . . . . . . . . . . . . . . . . . . 1 . . . . Part Schematics Acquired . | . . . . . . . . . . . . . . . . . . . . . . . . . . . . . . . Parts Damaged 1 | . . . . . . . . . . . . . . . . . . . . . . . . . . 1 . . . . Bothacking | -11 -10 -10 -9 -9 -8 -8 -7 -7 -7 -6 -6 -6 -6 -6 -5 -5 -5 -5 -4 -4 -4 -4 -4 -3 -3 -3 -2 -2 -1 -1 ------------ Run | Yrd Mat Min Mat Min Mat Sto Fac Was Fac Fac Ext Cet Arc Hub Fac Upp Upp War Pro Fac Upp Upp Zhi Pro Res Tes Res Qua Acc Com Used RIF Installer . | . . . . . . . . . . . . . . . . . . . . . . . . . . . . . . . Robots Hacked 1 | . . . . . . . . . . . . . . . . . . . . . . . . . . . . . . 1 Non-combat . | . . . . . . . . . . . . . . . . . . . . . . . . . . . . . . . Combat . | . . . . . . . . . . . . . . . . . . . . . . . . . . . . . . . Robot Hacks Applied . | . . . . . . . . . . . . . . . . . . . . . . . . . . . . . . . Manual 1 | . . . . . . . . . . . . . . . . . . . . . . . . . . . . . . 1 Relay Couplers Released 2 | . . . . . 1 . . . . . . . . . . . . . . . . . . . 1 . . . . . Machine Destruction 2 | . . . . . 1 . . . . . . . . . . . . . . . . . . . 1 . . . . . Fabnet Peak Effective % . | . . . . . . . . . . . . . . . . . . . . . . . . . . . . . . . Robots Rewired 14 | . . . . . . 2 . . . . 7 . . . . . . 5 . . . . . . . . . . . . Allies Hacked . | . . . . . . . . . . . . . . . . . . . . . . . . . . . . . . . Hacks Repelled . | . . . . . . . . . . . . . . . . . . . . . . . . . . . . . . . Allies | -11 -10 -10 -9 -9 -8 -8 -7 -7 -7 -6 -6 -6 -6 -6 -5 -5 -5 -5 -4 -4 -4 -4 -4 -3 -3 -3 -2 -2 -1 -1 -------- Run | Yrd Mat Min Mat Min Mat Sto Fac Was Fac Fac Ext Cet Arc Hub Fac Upp Upp War Pro Fac Upp Upp Zhi Pro Res Tes Res Qua Acc Com Total Allies 34 | . . . . . . 10 . . . . 13 5 . . . . . 5 . . . . . . . . . 1 . . Largest Group 9 | . . . . . . 9 . . . . 7 8 6 5 . . . 5 3 2 2 1 . . . . . 1 . . Highest-Rated Group 689 | . . . . . . 157 . . . . 240 689 639 480 . . . 304 195 130 130 65 . . . . . 45 . . Highest-Rated Ally 159 | . . . . . . 29 . . . . 159 159 159 96 . . . 68 65 65 65 65 . . . . . 45 . . Total Orders 23 | . . . . . . 3 . . . 1 7 . 4 . . . . 4 2 1 . 1 . . . . . . . . STAY 9 | . . . . . . 2 . . . . 1 . 2 . . . . 2 1 1 . . . . . . . . . . ROAM 1 | . . . . . . . . . . . . . . . . . . . . . . 1 . . . . . . . . FOLLOW 7 | . . . . . . 1 . . . . 1 . 2 . . . . 2 1 . . . . . . . . . . . EXPLORE 3 | . . . . . . . . . . 1 2 . . . . . . . . . . . . . . . . . . . RETURN 3 | . . . . . . . . . . . 3 . . . . . . . . . . . . . . . . . . . Ally Attacks 291 | . . . . . . 64 . . . . 113 40 24 39 . . . 11 . . . . . . . . . . . . Total Damage 8143 | . . . . . . 764 . . . . 2192 1486 964 1990 . . . 747 . . . . . . . . . . . . Kills 40 | . . . . . . 11 . . . . 9 6 4 6 . . . 4 . . . . . . . . . . . . Allies Corrupted 4 | . . . . . . . . . . . 1 . . 2 . . . 1 . . . . . . . . . . . . Allies Melted . | . . . . . . . . . . . . . . . . . . . . . . . . . . . . . . . Intel | -11 -10 -10 -9 -9 -8 -8 -7 -7 -7 -6 -6 -6 -6 -6 -5 -5 -5 -5 -4 -4 -4 -4 -4 -3 -3 -3 -2 -2 -1 -1 ------- Run | Yrd Mat Min Mat Min Mat Sto Fac Was Fac Fac Ext Cet Arc Hub Fac Upp Upp War Pro Fac Upp Upp Zhi Pro Res Tes Res Qua Acc Com Robot Analysis Total 8 | . 2 . 1 . 1 . . . . . . . . . . . . . . . . . 4 . . . . . . . Derelict Logs Recovered 6 | . . 1 . 1 . . . . . . . . . . . 2 1 . 1 . . . . . . . . . . . Drone Launches 4 | . . . . . . . . . . 1 3 . . . . . . . . . . . . . . . . . . . Drone Recoveries 4 | . . . . . . . . . . 1 3 . . . . . . . . . . . . . . . . . . . Exploration | -11 -10 -10 -9 -9 -8 -8 -7 -7 -7 -6 -6 -6 -6 -6 -5 -5 -5 -5 -4 -4 -4 -4 -4 -3 -3 -3 -2 -2 -1 -1 ------------- Run | Yrd Mat Min Mat Min Mat Sto Fac Was Fac Fac Ext Cet Arc Hub Fac Upp Upp War Pro Fac Upp Upp Zhi Pro Res Tes Res Qua Acc Com Turns Passed 36766 | 11 1278 589 874 1220 2528 1347 1079 117 1050 1205 1457 448 6796 393 454 568 616 1521 2676 474 954 1423 305 843 1400 897 818 1674 730 1021 Spaces Moved 18646 | 10 614 231 283 495 795 397 381 86 794 763 810 214 434 134 209 352 365 813 1540 256 525 642 165 419 1005 664 1204 1780 1217 1049 Core 272 | . . . . . . . . 56 216 . . . . . . . . . . . . . . . . . . . . . Treads 9220 | . 471 231 283 495 795 397 381 30 . . 8 . 143 134 209 352 365 813 1540 256 525 642 165 419 566 . . . . . Legs 153 | 10 143 . . . . . . . . . . . . . . . . . . . . . . . . . . . . . Wheels 2648 | . . . . . . . . . 578 763 802 214 291 . . . . . . . . . . . . . . . . . Hover 6353 | . . . . . . . . . . . . . . . . . . . . . . . . . 439 664 1204 1780 1217 1049 Flight . | . . . . . . . . . . . . . . . . . . . . . . . . . . . . . . . Fastest Speed 35 | 120 120 240 240 240 240 243 242 50 50 115 108 130 160 160 160 160 160 160 160 160 160 160 160 160 45 35 53 44 43 40 Average Speed 129 | 120 161 240 240 240 240 243 243 116 101 120 133 140 180 185 173 160 160 160 160 160 160 160 160 160 114 46 58 56 46 47 Slowest Speed 246 | 120 240 240 240 240 243 246 245 242 130 130 240 190 190 240 240 160 160 160 160 160 160 160 160 160 182 100 77 132 48 152 Overloaded Moves . | . . . . . . . . . . . . . . . . . . . . . . . . . . . . . . . Propulsion Burnouts . | . . . . . . . . . . . . . . . . . . . . . . . . . . . . . . . Robots Hopped . | . . . . . . . . . . . . . . . . . . . . . . . . . . . . . . . Cave-ins Triggered . | . . . . . . . . . . . . . . . . . . . . . . . . . . . . . . . Teleports 1 | . . . . . . . . . . . . . . . . . . . . . . . . . . . . 1 . . Exploration Rate (%) 54 | 2 86 45 31 96 77 59 15 84 23 25 82 76 96 16 11 57 70 92 99 8 69 77 63 67 30 63 27 85 31 23 Regions Visited 30 Branch Regions 18 Pre-discovered Areas 4 | . . 1 . . . . . . . . . . . . . . . . . . . . 3 . . . . . . . Known Exits Taken 9 | . . . . . 1 . . . . . . . . 1 1 1 . . . . . . . 1 1 . 1 1 1 . Unknown Exits Taken 19 | 1 1 1 1 1 . 1 . . 1 1 1 1 1 . . . 1 1 1 1 1 1 1 . . 1 . . . . Scrap Searched 13 | . . . . 2 . . . . . . . . . . . 1 2 . 1 . 1 3 . 3 . . . . . . Spaces Dug 245 | . . . 1 . 11 16 16 . 1 12 . . 1 . 4 1 . . 14 3 2 12 . 2 8 68 4 34 29 6 Terrain Destroyed 1007 | . 9 . 5 4 138 41 16 26 9 33 15 . 17 7 29 1 10 1 176 13 23 57 . 121 18 72 4 34 65 63 Melee 86 | . . . . . . . . . . . . . . . . . . . . . . . . . . 16 4 33 27 6 Projectile 306 | . . . 5 4 46 31 16 . 9 16 15 . 17 7 9 1 5 . 25 13 17 29 . 14 18 1 . 1 3 4 AOE 615 | . 9 . . . 92 10 . 26 . 17 . . . . 20 . 5 1 151 . 6 28 . 107 . 55 . . 35 53 Terrain Rammed . | . . . . . . . . . . . . . . . . . . . . . . . . . . . . . . . Walls Destroyed . | . . . . . . . . . . . . . . . . . . . . . . . . . . . . . . . Machines Disabled . | . . . . . . . . . . . . . . . . . . . . . . . . . . . . . . . Actions | -11 -10 -10 -9 -9 -8 -8 -7 -7 -7 -6 -6 -6 -6 -6 -5 -5 -5 -5 -4 -4 -4 -4 -4 -3 -3 -3 -2 -2 -1 -1 --------- Run | Yrd Mat Min Mat Min Mat Sto Fac Was Fac Fac Ext Cet Arc Hub Fac Upp Upp War Pro Fac Upp Upp Zhi Pro Res Tes Res Qua Acc Com Total 29322 | 9 832 246 401 513 1201 637 471 95 971 944 1089 340 6380 223 261 355 379 1010 1667 298 603 986 193 527 1196 1125 1290 2318 1307 1455 Wait 8048 | . 144 . 36 3 181 44 8 . 62 39 40 61 5860 23 9 . 2 138 50 19 21 289 . 32 42 329 31 342 19 224 Move 18617 | 9 613 230 282 494 794 396 381 85 793 762 809 213 433 133 208 351 364 812 1539 255 524 641 164 418 1004 663 1203 1779 1216 1049 Hop . | . . . . . . . . . . . . . . . . . . . . . . . . . . . . . . . Pick Up 269 | . 18 2 15 3 36 9 9 2 18 23 22 14 2 5 2 1 . 5 4 3 . . 2 5 25 7 7 18 3 9 Fast Attach 171 | . 2 . 4 . 3 3 1 1 10 10 8 4 7 4 6 . . 5 . . 1 2 4 5 21 8 17 26 7 12 Attach 190 | . 1 2 5 . 10 8 5 . 11 10 25 8 2 6 5 . . . 2 5 3 5 3 2 11 12 5 17 2 25 Detach 85 | . 2 . . . 1 1 . . 5 3 10 4 3 3 2 . . 1 . 2 2 4 3 2 6 8 4 8 1 10 Swap 227 | . 9 2 2 . 23 16 11 3 2 10 12 2 2 10 6 2 5 8 15 1 10 5 . 16 12 10 . 15 8 10 Drop 274 | . 7 . 15 3 28 9 4 1 8 9 18 18 5 8 4 . . 10 4 1 . 1 3 8 41 6 7 29 7 20 Fire 1016 | . 36 9 41 6 122 78 51 3 45 69 70 16 66 31 19 1 8 12 53 12 40 39 14 39 32 11 . 16 6 71 Melee 217 | . . . . . . . . . . . . . . . . . . . . . . . . . . 71 16 68 38 24 Ram 3 | . . . . . . . . . 1 1 . . . . . . . . . . . . . . . . . . . 1 Kick . | . . . . . . . . . . . . . . . . . . . . . . . . . . . . . . . Crush 23 | . . 1 1 4 3 9 1 . . . . . . . . . . . . . 2 . . . 2 . . . . . Escape Stasis 45 | . . . . . . . . . 16 . 29 . . . . . . . . . . . . . . . . . . . Rewire 129 | . . . . . . 56 . . . 8 46 . . . . . . 19 . . . . . . . . . . . . Trap . | . . . . . . . . . . . . . . . . . . . . . . . . . . . . . . . Miscellaneous 8 | . . . . . . 8 . . . . . . . . . . . . . . . . . . . . . . . . Route ------- -11/Scrapyard -10/Materials (discovered 4 exits: *Mat x2 / *Min x2) -10/Mines -9/Materials -9/Mines (discovered 3 exits: *Mat x2 / [*Exi]) -8/Materials (discovered 2 exits: *Fac / *Sto) -8/Storage -7/Factory -7/Waste -7/Factory (discovered 3 exits: *Fac x2 / [*Low]) -6/Factory (discovered 3 exits: *Fac x2 / *Ext) -6/Extension (discovered 2 exits: *Fac / *Cet) -6/Cetus (discovered 2 exits: *Fac / *Arc) -6/Archives (discovered 3 exits: *Fac / *Hub x2) -6/Hub_04(d) -5/Factory (discovered 2 exits: *Upp x2) -5/Upper Caves -5/Upper Caves -5/Warlord -4/Proximity Caves -4/Factory (discovered 2 exits: Res / [*Upp]) -4/Upper Caves -4/Upper Caves (discovered 2 exits: *Res / *Zhi) -4/Zhirov -3/Proximity Caves -3/Research (discovered 3 exits: *Res / *Tes x2) -3/Testing -2/Research (discovered 5 exits: Acc x3 / *Qua x2) -2/Quarantine -1/Access -1/Command History --------- Turn | Location | Event 1 | -11/Scrapyard | Discovered new exit (range 3) 12 | -11/Scrapyard | Entered Materials 12 | -10/Materials | Discovered new exit (range 14) 122 | -10/Materials | Discovered new exit (range 3) 310 | -10/Materials | Build established: Mutant 973 | -10/Materials | Discovered new exit (range 15) 1109 | -10/Materials | Discovered new exit (range 10) 1290 | -10/Materials | Entered Mines 1522 | -10/Mines | Learned location of Zion (-6) 1808 | -10/Mines | Met a Derelict shopkeep closing up shop 1860 | -10/Mines | Discovered new exit (range 7) 1875 | -10/Mines | Assembled infested the area 1879 | -10/Mines | Entered Materials 1879 | -9/Materials | Evolved 2 slots: Utility x2 2309 | -9/Materials | Build established: Scavenger-Mutant 2625 | -9/Materials | Discovered new exit (range 7) 2753 | -9/Materials | Entered Mines 2797 | -9/Mines | Build established: Mutant 2813 | -9/Mines | Found a hidden stash of uninstalled traps 2859 | -9/Mines | Learned Materials emergency access door positions 2868 | -9/Mines | Deemed a non-threat by the Exiles lab entrance 2871 | -9/Mines | Discovered new exit (range 5) 2935 | -9/Mines | Discovered new exit (range 9) 2995 | -9/Mines | Discovered new exit (range 9) 3386 | -9/Mines | Received a Rocket Launcher from a helpful Derelict 3973 | -9/Mines | Entered Materials 3973 | -8/Materials | Evolved 2 slots: Propulsion x1, Utility x1 4296 | -8/Materials | Build established: Scavenger-Mutant 4819 | -8/Materials | Build established: Mutant 5567 | -8/Materials | Identified exit to Storage 5672 | -8/Materials | Discovered new exit (range 6) 5737 | -8/Materials | Build established: Scavenger-Mutant 6206 | -8/Materials | Destroyed 7 combat bots 6239 | -8/Materials | Garrison activated, responded to threat 6422 | -8/Materials | Lost 3 parts (1n2u) 6423 | -8/Materials | Destroyed 13 combat bots 6501 | -8/Materials | Entered Storage 6982 | -8/Storage | Assisted by bots powering up and referring to "LRC-V3" 7109 | -8/Storage | Garrison activated, responded to threat 7191 | -8/Storage | Lost 5 allies 7637 | -8/Storage | Core integrity fell below 50% 7654 | -8/Storage | Discovered new exit (range 14) 7745 | -8/Storage | Lost 4 parts (1n3u) 7755 | -8/Storage | Destroyed 7 combat bots 7848 | -8/Storage | Entered Factory 7848 | -7/Factory | Evolved 2 slots: Propulsion x1, Utility x1 8927 | -7/Factory | Sucked down chute 8927 | -7/Factory | Entered Waste 8942 | -7/Waste | EMP discharged 8987 | -7/Waste | Spotted C-40 Crusher 9000 | -7/Waste | Spotted C-40 Crusher 9005 | -7/Waste | Spotted C-40 Crusher 9009 | -7/Waste | Spotted C-40 Crusher 9011 | -7/Waste | Crushed by Compactor (1 part destroyed, 1 dropped) 9012 | -7/Waste | Released all parts (9) 9015 | -7/Waste | Spotted C-40 Crusher 9017 | -7/Waste | Crushed by Compactor (1 part destroyed) 9032 | -7/Waste | Spotted C-40 Crusher 9039 | -7/Waste | Discovered new exit (range 10) 9042 | -7/Waste | EMP discharged 9042 | -7/Waste | System corruption reached 10% 9044 | -7/Waste | Entered Factory 9048 | -7/Factory | Lost 3 parts (2u1w) 9278 | -7/Factory | Discovered new exit (range 13) 9288 | -7/Factory | Build established: Mutant 9715 | -7/Factory | Discovered new exit (range 12) 9754 | -7/Factory | Discovered new exit (range 4) 10094 | -7/Factory | Entered another Factory area 10094 | -6/Factory | Evolved 2 slots: Power x1, Utility x1 10122 | -6/Factory | Discovered new exit (range 4) 10398 | -6/Factory | Lost 3 parts (1p2u) 10462 | -6/Factory | Discovered new exit (range 14) 10469 | -6/Factory | Build established: Scavenger-Mutant 10847 | -6/Factory | Identified exit to Factory 11086 | -6/Factory | Garrison activated, responded to threat 11214 | -6/Factory | Discovered new exit (range 15) 11299 | -6/Factory | Entered Extension 11408 | -6/Extension | Lost 5 parts (1p3u1w) 11511 | -6/Extension | Lost 4 parts (1p1n1u1w) 11659 | -6/Extension | Rescued a captive Derelict 12102 | -6/Extension | Spotted B-75 Beast 12114 | -6/Extension | Destroyed B-75 Beast 12125 | -6/Extension | Spotted B-75 Beast 12133 | -6/Extension | Destroyed B-75 Beast 12177 | -6/Extension | Lost 7 allies 12193 | -6/Extension | Rescued a captive Derelict 12206 | -6/Extension | Rescued a captive Derelict 12322 | -6/Extension | Rescued a captive Derelict 12400 | -6/Extension | Rescued a captive Derelict 12489 | -6/Extension | Rescued A7 12502 | -6/Extension | Lost 3 parts (2n1u) 12559 | -6/Extension | Build established: Mutant 12725 | -6/Extension | Discovered exit to Factory (range 10) 12726 | -6/Extension | Discovered new exit (range 6) 12742 | -6/Extension | Found Hvy. Reactive Plating 12756 | -6/Extension | Entered Cetus 12756 | -6/Cetus | Accompanied by 4 allies (A7) 12761 | -6/Cetus | Acquired a Cetus Manufacturing Module code from A7 12774 | -6/Cetus | Spotted Cetus Guard 12774 | -6/Cetus | Spotted Cetus Guard 12776 | -6/Cetus | Spotted Cetus Guard 12776 | -6/Cetus | Spotted Cetus Guard 12784 | -6/Cetus | Destroyed Cetus Guard 12793 | -6/Cetus | Allies destroyed Cetus Guard 12794 | -6/Cetus | Core integrity fell below 50% 12799 | -6/Cetus | Destroyed Cetus Guard 12800 | -6/Cetus | Destroyed Cetus Guard 12881 | -6/Cetus | Started Cetus Manufacturing Module 12893 | -6/Cetus | Escorted A7 to Cetus Mainframe 12906 | -6/Cetus | Manufactured an Enhanced Grunt 12931 | -6/Cetus | Manufactured an Enhanced Grunt 12956 | -6/Cetus | Manufactured an Enhanced Grunt 12981 | -6/Cetus | Manufactured an Enhanced Grunt 13006 | -6/Cetus | Manufactured an Enhanced Grunt 13021 | -6/Cetus | Discovered new exit (range 16) 13045 | -6/Cetus | Spotted Cetus Guard 13045 | -6/Cetus | Spotted Cetus Guard 13052 | -6/Cetus | Spotted Cetus Guard 13053 | -6/Cetus | Spotted Cetus Guard 13056 | -6/Cetus | Destroyed Cetus Guard 13067 | -6/Cetus | Allies destroyed Cetus Guard 13070 | -6/Cetus | Destroyed Cetus Guard 13073 | -6/Cetus | Destroyed Cetus Guard 13080 | -6/Cetus | Discovered exit to Factory (range 16) 13087 | -6/Cetus | Met Revision 17 13133 | -6/Cetus | System corruption reached 10% 13204 | -6/Cetus | Entered Archives 13204 | -6/Archives | Accompanied by 6 allies (A7) 13209 | -6/Archives | Received a hacking code to weaken MAIN.C 13275 | -6/Archives | Discovered new exit (range 15) 13394 | -6/Archives | Build established: Scavenger-Mutant 13438 | -6/Archives | Discovered exit to Factory (range 15) 13778 | -6/Archives | Unable to access archive contents 13866 | -6/Archives | Discovered new exit (range 16) 20000 | -6/Archives | Entered Hub_04(d) 20000 | -6/Hub_04(d) | Accompanied by 5 allies 20066 | -6/Hub_04(d) | Discovered exit to Factory (range 16) 20116 | -6/Hub_04(d) | Network Hub disabled 20116 | -6/Hub_04(d) | Network Hub disabled 20116 | -6/Hub_04(d) | Network Hub disabled 20119 | -6/Hub_04(d) | Spotted Lightning 20119 | -6/Hub_04(d) | Spotted Lightning 20120 | -6/Hub_04(d) | Spotted Lightning 20138 | -6/Hub_04(d) | Destroyed Lightning 20149 | -6/Hub_04(d) | Allies destroyed Lightning 20157 | -6/Hub_04(d) | Lost 4 allies 20231 | -6/Hub_04(d) | Found Prototype Device 20231 | -6/Hub_04(d) | Identified Exp. Phase Shifter 20282 | -6/Hub_04(d) | System corruption reached 30% 20393 | -6/Hub_04(d) | Entered Factory 20393 | -5/Factory | Evolved 2 slots: Utility x2 20504 | -5/Factory | Identified exit to Upper Caves 20847 | -5/Factory | Entered Upper Caves 20950 | -5/Upper Caves | Learned location of 1 exit from Factory 20980 | -5/Upper Caves | Encountered a Warlord checkpoint 21105 | -5/Upper Caves | Identified exit to Upper Caves 21415 | -5/Upper Caves | Entered another Upper Caves area 21700 | -5/Upper Caves | Encountered a Warlord checkpoint 21803 | -5/Upper Caves | Learned Factory stockpile data 21973 | -5/Upper Caves | Discovered new exit (range 16) 22031 | -5/Upper Caves | Entered Warlord 22944 | -5/Warlord | Warlord's base attacked by MAIN.C 23004 | -5/Warlord | Found Prototype Energy Cannon 23004 | -5/Warlord | Identified Vortex Driver 23015 | -5/Warlord | Found Vortex Driver 23142 | -5/Warlord | Met Warlord 23169 | -5/Warlord | Found Prototype Reactor 23169 | -5/Warlord | Identified Vortex Chain Reactor 23175 | -5/Warlord | Found Prototype Device 23175 | -5/Warlord | Identified Exp. Cloaking Device 23183 | -5/Warlord | Found Prototype Device 23183 | -5/Warlord | Identified Exp. Focal Shield 23288 | -5/Warlord | Spotted Striker 23294 | -5/Warlord | Warlord forces counterattacked 23299 | -5/Warlord | Spotted B-86 Titan 23301 | -5/Warlord | Spotted Executioner 23303 | -5/Warlord | Spotted B-75 Beast 23320 | -5/Warlord | Allies destroyed B-86 Titan 23325 | -5/Warlord | Allies destroyed B-75 Beast 23346 | -5/Warlord | Spotted Striker 23373 | -5/Warlord | Spotted B-86 Titan 23373 | -5/Warlord | Spotted Executioner 23440 | -5/Warlord | Lost 8 allies 23447 | -5/Warlord | Discovered new exit (range 12) 23515 | -5/Warlord | Lost 9 allies 23552 | -5/Warlord | Entered Proximity Caves 23552 | -4/Proximity Caves | Accompanied by 3 allies 24512 | -4/Proximity Caves | Learned Research emergency access door positions 24865 | -4/Proximity Caves | Attracted the attention of an 0b10 checkpoint 25255 | -4/Proximity Caves | Discovered new exit (range 8) 26228 | -4/Proximity Caves | Entered Factory 26228 | -4/Factory | Accompanied by 2 allies 26228 | -4/Factory | Evolved 2 slots: Propulsion x2 26229 | -4/Factory | Identified exit to Research 26363 | -4/Factory | Discovered new exit (range 7) 26565 | -4/Factory | Found Quantum Capacitor 26702 | -4/Factory | Entered Upper Caves 26702 | -4/Upper Caves | Accompanied by 2 allies 26765 | -4/Upper Caves | Spotted B-86 Titan 26797 | -4/Upper Caves | Destroyed B-86 Titan 27586 | -4/Upper Caves | Discovered new exit (range 11) 27656 | -4/Upper Caves | Entered another Upper Caves area 27656 | -4/Upper Caves | Accompanied by 1 ally 27772 | -4/Upper Caves | Discovered exit to Research (range 11) 28775 | -4/Upper Caves | Discovered new exit (range 16) 28800 | -4/Upper Caves | Attracted the attention of an 0b10 checkpoint 29079 | -4/Upper Caves | Entered Zhirov 29080 | -4/Zhirov | Discovered new exit (range 3) 29109 | -4/Zhirov | Met Zhirov 29144 | -4/Zhirov | Learned location of Quarantine (-2) 29144 | -4/Zhirov | Learned location of Testing (-3) 29144 | -4/Zhirov | Learned location of Command (-1) 29170 | -4/Zhirov | Zhirov requested help retrieving the SGEMP Prototype 29196 | -4/Zhirov | Found Alien Artifact 29196 | -4/Zhirov | Identified Integrated Reactor 29196 | -4/Zhirov | Installed Integrated Reactor, increased core energy generation (+10) 29216 | -4/Zhirov | Found Alien Artifact 29384 | -4/Zhirov | Entered Proximity Caves 29501 | -3/Proximity Caves | Found Imp. Powered Armor 29580 | -3/Proximity Caves | Spotter reported a threat 29633 | -3/Proximity Caves | Spotter reported a threat 29700 | -3/Proximity Caves | Spotter reported a threat 29743 | -3/Proximity Caves | Spotted B-86 Titan 29885 | -3/Proximity Caves | Spotter reported a threat 30097 | -3/Proximity Caves | Destroyed 10 combat bots 30158 | -3/Proximity Caves | Discovered exit to Research (range 9) 30227 | -3/Proximity Caves | Entered Research 30227 | -3/Research | Evolved 2 slots: Power x1, Weapon x1 30298 | -3/Research | Identified exit to Testing 30401 | -3/Research | Spotted B-86 Titan 30427 | -3/Research | Revision forces began assault on 0b10 30497 | -3/Research | Found Gamma Bomb Array 30503 | -3/Research | Met up with Revision 17++ 30520 | -3/Research | Build established: Scavenger-Tank 30766 | -3/Research | Fabricated Adv. Hacking Suite (x1) 30927 | -3/Research | Research terminal network offline 31189 | -3/Research | Spotted Striker 31191 | -3/Research | Spotted Striker 31204 | -3/Research | Destroyed Striker 31206 | -3/Research | Destroyed Striker 31327 | -3/Research | Spotted Striker 31356 | -3/Research | Spotted Executioner 31411 | -3/Research | Lost 6 allies 31463 | -3/Research | Discovered new exit (range 22) 31584 | -3/Research | Build established: Scavenger-Mutant 31627 | -3/Research | Entered Testing 31746 | -3/Testing | Spotted Striker 31754 | -3/Testing | Found Prototype Device 31754 | -3/Testing | Identified Exp. Thermal Shield 31861 | -3/Testing | Repaired Broken Cmb. Antigrav System 31877 | -3/Testing | Search patrols dispatched 31905 | -3/Testing | Build established: Scavenger-Gladiator 32000 | -3/Testing | Found Prototype Energy Cannon 32000 | -3/Testing | Identified Null Cannon 32151 | -3/Testing | Discovered new exit (range 19) 32181 | -3/Testing | Spotted PL-58A50NBLR9 32524 | -3/Testing | Entered Research 32524 | -2/Research | Warlord forces began assault on 0b10 32524 | -2/Research | Evolved 2 slots: Utility x2 32539 | -2/Research | Identified exit to Access 32543 | -2/Research | Lost 10 parts (2p4n2u2w) 32580 | -2/Research | Identified exit to Quarantine 32580 | -2/Research | Spotted B-90 Cyclops 32600 | -2/Research | Met up with Warlord 32634 | -2/Research | Research machine network offline 32737 | -2/Research | Found Prototype Launcher 32737 | -2/Research | Identified Com. Tesla Bomb Launcher 32877 | -2/Research | Borebot progress halted 33016 | -2/Research | Spotted Executioner 33062 | -2/Research | Spotted B-90 Cyclops 33063 | -2/Research | Lost 4 allies 33111 | -2/Research | Met DD-05H 33130 | -2/Research | Spotted Striker 33135 | -2/Research | Spotted Striker 33193 | -2/Research | Borebot progress halted 33342 | -2/Research | Entered Quarantine 33396 | -2/Quarantine | Cryocooling Duct disabled 33411 | -2/Quarantine | Ambient heat levels rising (+20) 33411 | -2/Quarantine | Non-combat units ordered to evacuate 33562 | -2/Quarantine | Repaired Cmb. Antigrav System? 33628 | -2/Quarantine | Build established: Scavenger-Ninja 33765 | -2/Quarantine | Repaired Cmb. Antigrav System 34012 | -2/Quarantine | Cryocooling Duct disabled 34027 | -2/Quarantine | Ambient heat levels rising (+20) 34027 | -2/Quarantine | Combat units ordered to evacuate 34057 | -2/Quarantine | System corruption reached 10% 34060 | -2/Quarantine | Identified Transdimensional Reconstructor 34060 | -2/Quarantine | Warped through subspace 34091 | -2/Quarantine | Lost 8 parts (2p2n3u1w) 34127 | -2/Quarantine | Quarantine Guard activated 34130 | -2/Quarantine | Spotted Quarantine Guard 34130 | -2/Quarantine | Spotted Quarantine Guard 34130 | -2/Quarantine | Spotted Quarantine Guard 34130 | -2/Quarantine | Spotted Quarantine Guard 34292 | -2/Quarantine | Build established: Scavenger-Gladiator 34409 | -2/Quarantine | Repaired Broken Cmb. Antigrav System 34417 | -2/Quarantine | Spotted Quarantine Guard 34420 | -2/Quarantine | Destroyed Quarantine Guard 34466 | -2/Quarantine | Spotted Quarantine Guard 34535 | -2/Quarantine | Found Transdimensional Reconstructor 34559 | -2/Quarantine | Spotted Quarantine Guard 34613 | -2/Quarantine | Spotted Quarantine Guard 34623 | -2/Quarantine | Spotted Quarantine Guard 34633 | -2/Quarantine | Destroyed Quarantine Guard 34663 | -2/Quarantine | Discovered exit to Access (range 16) 34663 | -2/Quarantine | Spotted Quarantine Guard 34683 | -2/Quarantine | Destroyed Quarantine Guard 34700 | -2/Quarantine | Found Alien Slashing Weapon 34722 | -2/Quarantine | Destroyed Quarantine Guard 34860 | -2/Quarantine | Found Prototype Launcher 34869 | -2/Quarantine | Identified Tactical Quantum Warhead 34998 | -2/Quarantine | Identified Sigix Broadsword 35004 | -2/Quarantine | Found Alien Artifact 35016 | -2/Quarantine | Entered Access 35016 | -1/Access | Evolved 2 slots: Propulsion x1, Utility x1 35323 | -1/Access | Lost 4 allies 35692 | -1/Access | Identified exit to Command 35746 | -1/Access | Entered Command 35933 | -1/Command | Identified Subatomic Replicator 35933 | -1/Command | Used Subatomic Replicator to replicate Cmb. Linear Gravjet 35955 | -1/Command | Repaired Cmb. Antigrav System? 36037 | -1/Command | Spotted M Guard 36038 | -1/Command | Spotted M Guard 36038 | -1/Command | Spotted Combat Programmer 36038 | -1/Command | Spotted Combat Programmer 36060 | -1/Command | Destroyed Combat Programmer 36083 | -1/Command | Destroyed Combat Programmer 36106 | -1/Command | Destroyed M Guard 36136 | -1/Command | Lost 4 parts (2n1u1w) 36139 | -1/Command | Spotted Alpha 7 36141 | -1/Command | Spotted Alpha 7 36149 | -1/Command | Found Corrupted Prototype Device 36151 | -1/Command | Found Corrupted Prototype Launcher 36226 | -1/Command | Disengaged cave seal 36226 | -1/Command | Derelicts emerged from the dark tunnel 36226 | -1/Command | Welcomed Warlord to Command 36348 | -1/Command | Lost 8 allies 36376 | -1/Command | Destroyed Alpha 7 36383 | -1/Command | Build established: Scavenger-Mutant 36393 | -1/Command | System corruption reached 10% 36496 | -1/Command | Warlord commented on Warlord statues 36522 | -1/Command | First assault squad dispatched 36528 | -1/Command | All MAIN.C guards destroyed 36558 | -1/Command | Lost 13 parts (2p3n6u2w) 36607 | -1/Command | Met MAIN.C 36607 | -1/Command | Hacked MAIN.C using A7's code 36642 | -1/Command | 0b10 Conduit disabled 36673 | -1/Command | Identified AEGIS Remote Shield 36675 | -1/Command | System corruption reached 30% 36679 | -1/Command | Destroyed MAIN.C Shell 36681 | -1/Command | MAIN.C activated Command garrisons 36710 | -1/Command | Lost 4 parts (1p3n) 36717 | -1/Command | Warlord destroyed during the assault 36744 | -1/Command | Core integrity fell below 50% 36758 | -1/Command | Identified Ragnarok Missile Launcher 36759 | -1/Command | Core integrity fell below 20% 36767 | -1/Command | Destroyed by MAIN.C with Omega Cannon Last Messages --------------- 36726_ Acquired 17 matter. 36727_ MAIN.C reaction time slowed by virus. 36734_ System corrupted: IFF burst signal emitted. 36734_ MAIN.C reaction time slowed by virus. 36748_ Smartbomb Launcher destroyed. 36748_ Null Cannon destroyed. 36749_ Broken Imp. Melee Analysis Suite destroyed. 36751_ System corrupted: Matter fused (-6). 36752_ MAIN.C reaction time slowed by virus. 36754_ Cmb. Linear Gravjet destroyed. 36757_ Adv. Coolant Injector destroyed. 36757_ Critical hit (Blast). 36758_ Identified Ragnarok Missile Launcher. 36758_ Integrated Corrupted Ragnarok Missile Launcher (+5). 36759_ Ragnarok Missile intercepted. 36760_ Cmb. Antigrav System destroyed. 36760_ Ragnarok Missile Launcher destroyed. 36763_ MAIN.C reaction time slowed by virus. 36766_ System corrupted: Heat flow error (+265). 36766_ MAIN.C reaction time slowed by virus. Map ----- +----------------------------------------------------+ | ?????????????????????????????????????????????????? | | ?????????????????????????????????????????????????? | | ?????????????????????????????????????????????????? | | ?????????????????????????????????????????????????? | | ?????????????????????????????????????????????????? | | ?????????????????????????????????????????????????? | | ?????????????????????????????????????????????????? | | ?????????????????????????????????????????????????? | | ?????????????????????????????????????????????????? | | ????????????????????????????????#################? | | ??????????????????????????????"""" """" #? | | ?????????????????????????????? "" #? | | ??????????????????????????#""""" "" ||## | | ??????????????????????????#""""""""""" !/] | | ??????????????????????????#" " """ !% | | ??????????????????????????#"" """"" | | ??????????????????????????#"" """""" ## | | ??????????????????????????# " """""" #? | | ??????????????????????????# " " #? | | ??????????????????????????# " " ""#? | | ??????????????????????????#""""""" g g """""#? | | ??????????????????????????#" """"""#? | | ??????????????????????????# g M """"""""#? | | ??????????????????????????# g " " ?? | | ????????????????????????### % " " "??? | | ????????????????????????"@ " """" "??? | | ????????????????????????""" " " """"??? | | ?????????????????????????" " " " "????? | | ?????????????????????????##%% " """""""" "????? | | ??????????????????????????# " """ " """""????? | | ??????????????????????????# """ " " ??"????? | | ??????????????????????????############?##????????? | | ?????????????????????????????????????????????????? | | ?????????????????????????????????????????????????? | | ?????????????????????????????????????????????????? | | ?????????????????????????????????????????????????? | | ?????????????????????????????????????????????????? | | ?????????????????????????????????????????????????? | | ?????????????????????????????????????????????????? | | ?????????????????????????????????????????????????? | | ?????????????????????????????????????????????????? | | ?????????????????????????????????????????????????? | | ?????????????????????????????????????????????????? | | ?????????????????????????????????????????????????? | | ?????????????????????????????????????????????????? | | ?????????????????????????????????????????????????? | | ?????????????????????????????????????????????????? | | ?????????????????????????????????????????????????? | | ?????????????????????????????????????????????????? | | ?????????????????????????????????????????????????? | +----------------------------------------------------+ Best States ------------- Heat Dissipation 114 Coolant Potential 420 Energy Generation 85 Energy Capacity 950 Matter Stores 300 Matter Capacity 300 Sight Range 22 Robot Scan Range 18 Terrain Scan Range 24 Terrain Scan Density 10 Jamming Range 16 Cloak Strength 4 Armor Coverage 2450 Resistance: KI 40 Resistance: TH 15 Core Shielding 40 Propulsion Shielding 66 Utility Shielding 66 Weapon Shielding 90 Point Defense Rating 240 Weapon Cycling 15 Evasion (%) 70 Targeting Accuracy 8 Melee Accuracy 12 Core Analysis 6 Recoil Reduction 12 Energy Filtering 30 Particle Charging 25 Offensive Hacking 36 Trap Extractor Capacity 8 Item Schematics ----------------- Adv. Hacking Suite | -4/Factory | Hacked Assault Drone Bay | -4/Zhirov | Free Exp. Heat Sink | -4/Zhirov | Free Exp. Optical Array | -4/Zhirov | Free Imp. Arc Thrower | -4/Zhirov | Free Nanoactuators | -2/Research | Hacked Cmb. Linear Gravjet | -2/Quarantine | Hacked Robot Schematics ------------------ None Fabricated ------------ Adv. Hacking Suite | x1 | -3/Research Alien Tech Used ----------------- Integrated Reactor Transdimensional Reconstructor Sigix Broadsword Subatomic Replicator Achievements -------------- Corridor Of Doom Poison In The Code Challenges ------------ None Game ------ Seed InsulatedLatentMultitool Manual? 0 Play Time 09:27:17 Cumulative 218.3 hours Start 2024.09.18 @ 16:27:40 End 2024.09.25 @ 16:18:05 Sessions 67 Manual Loads 0 Difficulty Rogue Special Mode None Game No. 141 Rogue 141 Adventurer 0 Explorer 0 Win Type - Total 9 Types 3/0/4/1/0/0/1/0/0 Lore% 74 Gallery% 73 Achievement% 66 Wizard Run 0 Options --------- Layout 0 ASCII 0 Keyboard 0 Movement Arrows Keybinds 0 Fullscreen 2 Font 18/SmallcapsGlow Map View 76x50 Zoom Use 0% Tactical HUD 1 Map Filters NONE Filters NONE Steam 1 RUN: 6faaba56-8075-4a97-90df-f173a478d3f7